[Event "*** Titled Tuesday Blitz"]
[Site "Chess.com"]
[Date "2019.05.07"]
[Round "8"]
[White "Caisachess"]
[Black "SwamiChaturanga"]
[Result "1-0"]
[WhiteElo "2331"]
[BlackElo "2016"]
[TimeControl "180+2"]
[EndTime "14:54:23 PDT"]
[Termination "Caisachess won by resignation"]

1. e4 {[%clk 0:03:01.9]} 1... c5 {[%clk 0:02:59.4]} 2. c3 {[%clk 0:03:02.8]}
2... d6 {[%clk 0:02:35.6]} 3. d4 {[%clk 0:03:03.2]} 3... Nd7 {[%clk 0:02:31.2]}
4. Bd3 {[%clk 0:03:03.5]} 4... g6 {[%clk 0:02:32]} 5. Nf3 {[%clk 0:03:03.8]}
5... Bg7 {[%clk 0:02:33.5]} 6. O-O {[%clk 0:03:05.3]} 6... a6 {[%clk 0:02:32.3]}
7. a4 {[%clk 0:03:05.5]} 7... Qc7 {[%clk 0:02:33.6]} 8. Qe2 {[%clk 0:03:05.7]}
8... b6 {[%clk 0:02:32.2]} 9. Bf4 {[%clk 0:03:01.3]} 9... Bb7 {[%clk 0:02:31.8]}
10. Re1 {[%clk 0:03:02.5]} 10... e5 {[%clk 0:02:30.5]} 11. dxe5 {[%clk
0:03:01.6]} 11... dxe5 {[%clk 0:02:28.8]} 12. Bg3 {[%clk 0:03:02.3]} 12... Ne7
{[%clk 0:02:25]} 13. Nbd2 {[%clk 0:03:03.2]} 13... O-O {[%clk 0:02:23.8]} 14.
Rad1 {[%clk 0:02:52.7]} 14... Bc6 {[%clk 0:02:17.7]} 15. a5 {[%clk 0:02:47.9]}
15... b5 {[%clk 0:02:17.8]} 16. b4 {[%clk 0:02:49.1]} 16... Rae8 {[%clk
0:02:05.9]} 17. Bc2 {[%clk 0:02:43.8]} 17... h6 {[%clk 0:01:48.9]} 18. Nf1
{[%clk 0:02:37.4]} 18... Qb7 {[%clk 0:01:46.5]} 19. Ne3 {[%clk 0:02:32.1]} 19...
f5 {[%clk 0:01:43.2]} 20. exf5 {[%clk 0:02:25.8]} 20... gxf5 {[%clk 0:01:44.5]}
21. Bh4 {[%clk 0:02:19.9]} 21... Ng6 {[%clk 0:01:45.1]} 22. Nxf5 {[%clk
0:02:14]} 22... Nf4 {[%clk 0:00:48.5]} 23. Qe3 {[%clk 0:02:03.9]} 23... Nf6
{[%clk 0:00:49.6]} 24. Nxg7 {[%clk 0:01:49.3]} 24... Qxg7 {[%clk 0:00:50.3]} 25.
Bg3 {[%clk 0:01:48]} 25... Ng4 {[%clk 0:00:28.8]} 26. Qxc5 {[%clk 0:01:48.2]}
26... Rc8 {[%clk 0:00:15.9]} 27. Qd6 {[%clk 0:01:37.2]} 27... Nxg2 {[%clk
0:00:15]} 28. Nxe5 {[%clk 0:01:17.3]} 28... Nxe1 {[%clk 0:00:09.2]} 29. Qe6+
{[%clk 0:01:18.1]} 29... Rf7 {[%clk 0:00:06.8]} 30. Qxc8+ {[%clk 0:01:12.3]}
30... Qf8 {[%clk 0:00:07.1]} 31. Qxf8+ {[%clk 0:01:07.3]} 31... Rxf8 {[%clk
0:00:07.8]} 32. Nxg4 {[%clk 0:01:08]} 32... Nxc2 {[%clk 0:00:08.3]} 33. Rd6
{[%clk 0:01:04.6]} 33... Bf3 {[%clk 0:00:09]} 34. Ne5 {[%clk 0:01:04.9]} 34...
Bb7 {[%clk 0:00:08.5]} 35. Rd7 {[%clk 0:01:03.5]} 35... Be4 {[%clk 0:00:08.7]}
36. f3 {[%clk 0:01:00.2]} 36... Ba8 {[%clk 0:00:03.9]} 37. Kf2 {[%clk
0:00:58.6]} 37... Re8 {[%clk 0:00:04.5]} 38. Rd6 {[%clk 0:00:55.7]} 38... Kg7
{[%clk 0:00:05.4]} 39. Rxa6 {[%clk 0:00:55.9]} 39... Rd8 {[%clk 0:00:06.9]} 40.
Ra7+ {[%clk 0:00:53.4]} 40... Kf6 {[%clk 0:00:07.9]} 41. Bh4+ {[%clk 0:00:51.7]}
41... Kxe5 {[%clk 0:00:08.5]} 42. Bxd8 {[%clk 0:00:52.7]} 42... Bc6 {[%clk
0:00:09.6]} 43. Rc7 {[%clk 0:00:52.8]} 43... Kd6 {[%clk 0:00:10.6]} 44. Rh7
{[%clk 0:00:51.1]} 44... Na3 {[%clk 0:00:08.5]} 45. Rxh6+ {[%clk 0:00:52.3]}
45... Kd5 {[%clk 0:00:08.5]} 46. a6 {[%clk 0:00:53.4]} 46... Nc4 {[%clk
0:00:06.4]} 47. a7 {[%clk 0:00:53.7]} 47... Ba8 {[%clk 0:00:06.3]} 48. Rh5+
{[%clk 0:00:53.1]} 1-0

[Event "*** Titled Tuesday Blitz"]
[Site "Chess.com"]
[Date "2019.05.07"]
[Round "8"]
[White "LiamVrolijk"]
[Black "AryanTari"]
[Result "0-1"]
[WhiteElo "2514"]
[BlackElo "2873"]
[TimeControl "180+2"]
[EndTime "14:54:28 PDT"]
[Termination "AryanTari won by resignation"]

1. d4 {[%clk 0:03:01.9]} 1... d5 {[%clk 0:02:44.7]} 2. c4 {[%clk 0:03:03.2]}
2... dxc4 {[%clk 0:02:44.9]} 3. e3 {[%clk 0:03:02.6]} 3... e5 {[%clk 0:02:42.4]}
4. Bxc4 {[%clk 0:03:03.7]} 4... Nc6 {[%clk 0:02:44]} 5. Nf3 {[%clk 0:02:48.1]}
5... e4 {[%clk 0:02:44.8]} 6. Nfd2 {[%clk 0:02:49.5]} 6... Qg5 {[%clk
0:02:45.5]} 7. Nxe4 {[%clk 0:02:41.5]} 7... Qxg2 {[%clk 0:02:46.3]} 8. Ng3
{[%clk 0:02:35.6]} 8... Nf6 {[%clk 0:02:39.8]} 9. Nc3 {[%clk 0:02:30.7]} 9...
Bb4 {[%clk 0:02:40.7]} 10. Bf1 {[%clk 0:02:29.3]} 10... Qd5 {[%clk 0:02:40.8]}
11. Bd2 {[%clk 0:02:30.9]} 11... Bxc3 {[%clk 0:02:39.6]} 12. bxc3 {[%clk
0:02:32.8]} 12... Bg4 {[%clk 0:02:12.7]} 13. Qb3 {[%clk 0:02:33.8]} 13... Qd7
{[%clk 0:02:14.3]} 14. Bg2 {[%clk 0:02:31.5]} 14... Rb8 {[%clk 0:02:06.6]} 15.
h3 {[%clk 0:02:28.3]} 15... Be6 {[%clk 0:01:50.2]} 16. c4 {[%clk 0:02:29.4]}
16... Ne7 {[%clk 0:01:21.6]} 17. d5 {[%clk 0:02:30.3]} 17... Bf5 {[%clk
0:01:23.2]} 18. e4 {[%clk 0:02:25.5]} 18... Bg6 {[%clk 0:01:24.6]} 19. e5 {[%clk
0:02:26.8]} 19... Nh5 {[%clk 0:01:26]} 20. O-O {[%clk 0:02:12.9]} 20... O-O
{[%clk 0:01:26.8]} 21. Qf3 {[%clk 0:02:05.2]} 21... Nxg3 {[%clk 0:01:25.6]} 22.
fxg3 {[%clk 0:02:07.1]} 22... c6 {[%clk 0:01:18.8]} 23. Bb4 {[%clk 0:02:03.5]}
23... Rfe8 {[%clk 0:01:12.8]} 24. Rae1 {[%clk 0:01:45.5]} 24... cxd5 {[%clk
0:01:06.7]} 25. cxd5 {[%clk 0:01:47.4]} 25... Rbd8 {[%clk 0:01:02.4]} 26. Bxe7
{[%clk 0:01:00.7]} 26... Qxe7 {[%clk 0:00:47.8]} 27. d6 {[%clk 0:01:02]} 27...
Qg5 {[%clk 0:00:38.3]} 28. Qf4 {[%clk 0:00:57]} 28... Qxf4 {[%clk 0:00:32.9]}
29. gxf4 {[%clk 0:00:57.9]} 29... Bf5 {[%clk 0:00:29.5]} 30. Re3 {[%clk
0:00:55.7]} 30... Rxd6 {[%clk 0:00:28.9]} 31. Bxb7 {[%clk 0:00:23.5]} 31... Rd2
{[%clk 0:00:30]} 32. Rf2 {[%clk 0:00:23.9]} 32... Red8 {[%clk 0:00:31.2]} 33.
Ra3 {[%clk 0:00:23.3]} 33... R2d7 {[%clk 0:00:25.7]} 34. Bc6 {[%clk 0:00:24.4]}
34... Rc7 {[%clk 0:00:25.5]} 35. Bg2 {[%clk 0:00:25.5]} 35... h5 {[%clk
0:00:25.2]} 36. h4 {[%clk 0:00:18.8]} 36... Rd4 {[%clk 0:00:26.1]} 37. Kh2
{[%clk 0:00:20.2]} 37... Rcc4 {[%clk 0:00:17.1]} 38. Kg3 {[%clk 0:00:19.3]}
38... Ra4 {[%clk 0:00:18]} 39. Rc3 {[%clk 0:00:19.4]} 39... Be6 {[%clk
0:00:15.4]} 40. a3 {[%clk 0:00:19]} 40... g6 {[%clk 0:00:16.5]} 41. Bc6 {[%clk
0:00:14.5]} 41... Rac4 {[%clk 0:00:15.3]} 42. Rff3 {[%clk 0:00:15.4]} 42... Rxf4
{[%clk 0:00:14.3]} 43. Rxc4 {[%clk 0:00:10.7]} 43... Rxc4 {[%clk 0:00:16.2]} 44.
Bb5 {[%clk 0:00:11.4]} 44... Rg4+ {[%clk 0:00:17.3]} 45. Kf2 {[%clk 0:00:13.3]}
45... Rxh4 {[%clk 0:00:18.7]} 0-1

[Event "*** Titled Tuesday Blitz"]
[Site "Chess.com"]
[Date "2019.05.07"]
[Round "8"]
[White "albi1999"]
[Black "Hikaru"]
[Result "0-1"]
[WhiteElo "2548"]
[BlackElo "3192"]
[TimeControl "180+2"]
[EndTime "14:54:28 PDT"]
[Termination "Hikaru won by resignation"]

1. d4 {[%clk 0:03:01.9]} 1... d5 {[%clk 0:03:00.6]} 2. c4 {[%clk 0:03:02.2]}
2... e6 {[%clk 0:03:01.7]} 3. Nf3 {[%clk 0:03:02.8]} 3... Nf6 {[%clk 0:03:02.8]}
4. g3 {[%clk 0:03:04.1]} 4... dxc4 {[%clk 0:02:45]} 5. Bg2 {[%clk 0:03:01.7]}
5... Be7 {[%clk 0:02:44.5]} 6. O-O {[%clk 0:02:59.1]} 6... O-O {[%clk 0:02:45]}
7. Ne5 {[%clk 0:02:51.6]} 7... c5 {[%clk 0:02:44.6]} 8. dxc5 {[%clk 0:02:51.8]}
8... Qc7 {[%clk 0:02:43.9]} 9. Nxc4 {[%clk 0:02:51.7]} 9... Qxc5 {[%clk
0:02:43.3]} 10. b3 {[%clk 0:02:52.9]} 10... Rd8 {[%clk 0:02:37.6]} 11. Nbd2
{[%clk 0:02:53.9]} 11... Qc7 {[%clk 0:02:37.1]} 12. Bb2 {[%clk 0:02:53.1]} 12...
Nc6 {[%clk 0:02:37.9]} 13. Rc1 {[%clk 0:02:47.9]} 13... Bd7 {[%clk 0:02:38.8]}
14. e3 {[%clk 0:02:44.4]} 14... Rac8 {[%clk 0:02:31.6]} 15. Qe2 {[%clk
0:02:44.7]} 15... Qb8 {[%clk 0:02:29.1]} 16. Ne4 {[%clk 0:02:38.5]} 16... Nd5
{[%clk 0:02:25.4]} 17. Rfd1 {[%clk 0:02:31.3]} 17... b5 {[%clk 0:02:23]} 18.
Ncd2 {[%clk 0:02:21.9]} 18... Be8 {[%clk 0:02:21.2]} 19. Qg4 {[%clk 0:02:07.7]}
19... g6 {[%clk 0:02:19.9]} 20. Qe2 {[%clk 0:02:01.2]} 20... b4 {[%clk
0:02:08.1]} 21. Nc4 {[%clk 0:02:00.4]} 21... f5 {[%clk 0:02:07.6]} 22. Ned2
{[%clk 0:01:50.8]} 22... Bf7 {[%clk 0:02:08.5]} 23. Nf3 {[%clk 0:01:49.7]} 23...
Nc3 {[%clk 0:02:09.5]} 24. Bxc3 {[%clk 0:01:47.1]} 24... bxc3 {[%clk 0:02:11.4]}
25. Rxc3 {[%clk 0:01:48.5]} 25... e5 {[%clk 0:02:05.1]} 26. h4 {[%clk
0:01:02.7]} 26... e4 {[%clk 0:02:00.8]} 27. Ng5 {[%clk 0:01:03.3]} 27... Rxd1+
{[%clk 0:01:57.9]} 28. Qxd1 {[%clk 0:01:03.4]} 28... Rd8 {[%clk 0:01:57.9]} 29.
Qe2 {[%clk 0:00:56.8]} 29... Bd5 {[%clk 0:01:58.7]} 30. Bf1 {[%clk 0:00:51.2]}
30... h6 {[%clk 0:01:53.3]} 31. Nh3 {[%clk 0:00:51.9]} 31... Bf7 {[%clk
0:01:48.4]} 32. Rc1 {[%clk 0:00:45.5]} 32... Nb4 {[%clk 0:01:46.8]} 33. Rd1
{[%clk 0:00:38]} 33... Nd5 {[%clk 0:01:30.5]} 34. Qe1 {[%clk 0:00:35.8]} 34...
Bf6 {[%clk 0:01:22.7]} 35. Nf4 {[%clk 0:00:30.2]} 35... Nc3 {[%clk 0:01:16]} 36.
Rxd8+ {[%clk 0:00:30.4]} 36... Qxd8 {[%clk 0:01:17.9]} 37. Ne2 {[%clk
0:00:25.3]} 37... Nxa2 {[%clk 0:01:15.7]} 38. Nd4 {[%clk 0:00:18]} 38... Bxd4
{[%clk 0:01:11.3]} 39. exd4 {[%clk 0:00:19.9]} 39... Qxd4 {[%clk 0:01:11.9]} 40.
Qa5 {[%clk 0:00:18.4]} 40... Nc3 {[%clk 0:01:13]} 41. Qc7 {[%clk 0:00:16.3]}
41... Nd1 {[%clk 0:01:11]} 42. Qb8+ {[%clk 0:00:13.1]} 42... Kg7 {[%clk
0:01:10.4]} 43. Qe5+ {[%clk 0:00:12.9]} 43... Qxe5 {[%clk 0:01:11.2]} 44. Nxe5
{[%clk 0:00:14.8]} 44... Bxb3 {[%clk 0:01:12.9]} 45. Nc6 {[%clk 0:00:16.3]}
45... Ba4 {[%clk 0:01:08.3]} 46. Nxa7 {[%clk 0:00:17]} 46... Nc3 {[%clk
0:01:09.8]} 47. Nc8 {[%clk 0:00:17.4]} 47... Kf6 {[%clk 0:01:10.4]} 48. Nb6
{[%clk 0:00:18.4]} 48... Be8 {[%clk 0:01:11.1]} 49. Bc4 {[%clk 0:00:18.3]} 49...
Ke5 {[%clk 0:01:11.2]} 50. Bb3 {[%clk 0:00:18.4]} 50... Bb5 {[%clk 0:01:10.2]}
51. Bc4 {[%clk 0:00:17.5]} 51... Be8 {[%clk 0:01:04]} 52. Bb3 {[%clk 0:00:17.6]}
52... Kd4 {[%clk 0:01:04.4]} 53. Nc4 {[%clk 0:00:17.1]} 53... Bf7 {[%clk
0:01:03.9]} 54. Nd2 {[%clk 0:00:17]} 54... Bxb3 {[%clk 0:01:05.1]} 55. Nxb3+
{[%clk 0:00:18.9]} 55... Kd3 {[%clk 0:01:07]} 56. Nc5+ {[%clk 0:00:20.2]} 56...
Ke2 {[%clk 0:01:08.2]} 57. Ne6 {[%clk 0:00:20.2]} 57... Nd1 {[%clk 0:01:02.4]}
58. Nf4+ {[%clk 0:00:20.6]} 58... Kf3 {[%clk 0:01:03.1]} 59. Nxg6 {[%clk
0:00:21]} 59... Nxf2 {[%clk 0:01:04.1]} 60. Ne5+ {[%clk 0:00:22.2]} 60... Kxg3
{[%clk 0:01:05.4]} 0-1

[Event "*** Titled Tuesday Blitz"]
[Site "Chess.com"]
[Date "2019.05.07"]
[Round "8"]
[White "EfrenRamos1"]
[Black "FearlessKing64"]
[Result "1-0"]
[WhiteElo "2345"]
[BlackElo "2231"]
[TimeControl "180+2"]
[EndTime "14:54:28 PDT"]
[Termination "EfrenRamos1 won by resignation"]

1. Nf3 {[%clk 0:03:01.9]} 1... c5 {[%clk 0:03:00.3]} 2. c4 {[%clk 0:02:56]} 2...
Nc6 {[%clk 0:03:00.3]} 3. d4 {[%clk 0:02:39.1]} 3... cxd4 {[%clk 0:02:58.1]} 4.
Nxd4 {[%clk 0:02:40]} 4... Nf6 {[%clk 0:02:53.6]} 5. Nc3 {[%clk 0:02:40]} 5...
d5 {[%clk 0:02:52.6]} 6. Nxc6 {[%clk 0:02:32.7]} 6... bxc6 {[%clk 0:02:53]} 7.
cxd5 {[%clk 0:02:33.3]} 7... cxd5 {[%clk 0:02:53.3]} 8. e3 {[%clk 0:02:26.4]}
8... e6 {[%clk 0:02:53.7]} 9. Bb5+ {[%clk 0:02:26.5]} 9... Bd7 {[%clk
0:02:54.2]} 10. Qa4 {[%clk 0:02:27.5]} 10... Be7 {[%clk 0:02:50.6]} 11. O-O
{[%clk 0:02:27.1]} 11... O-O {[%clk 0:02:50.7]} 12. Rd1 {[%clk 0:02:27.6]} 12...
Bxb5 {[%clk 0:02:42.7]} 13. Qxb5 {[%clk 0:02:27.9]} 13... Rb8 {[%clk 0:02:39.8]}
14. Qe2 {[%clk 0:02:21.4]} 14... Qa5 {[%clk 0:02:31.9]} 15. Qd3 {[%clk 0:02:07]}
15... Rfc8 {[%clk 0:02:16]} 16. h3 {[%clk 0:02:03.7]} 16... h6 {[%clk
0:02:14.5]} 17. e4 {[%clk 0:01:56.9]} 17... dxe4 {[%clk 0:02:06.6]} 18. Nxe4
{[%clk 0:01:52.1]} 18... Rd8 {[%clk 0:02:05.1]} 19. Nxf6+ {[%clk 0:01:49.2]}
19... Bxf6 {[%clk 0:02:07]} 20. Qf1 {[%clk 0:01:45.9]} 20... Rxd1 {[%clk
0:01:49.8]} 21. Qxd1 {[%clk 0:01:45.5]} 21... Bxb2 {[%clk 0:01:31.1]} 22. Rb1
{[%clk 0:01:26.2]} 22... Rd8 {[%clk 0:01:25.1]} 23. Qc2 {[%clk 0:01:14.8]} 23...
Qe1+ {[%clk 0:01:04.7]} 24. Kh2 {[%clk 0:01:15.2]} 24... Be5+ {[%clk 0:00:59.3]}
25. f4 {[%clk 0:01:11.7]} 25... Bd4 {[%clk 0:00:36.7]} 26. Bb2 {[%clk
0:01:06.8]} 26... Qe3 {[%clk 0:00:26.6]} 27. Rf1 {[%clk 0:01:03.6]} 27... Bxb2
{[%clk 0:00:24.9]} 28. Qxb2 {[%clk 0:01:04]} 28... Rd2 {[%clk 0:00:26.4]} 29.
Qb8+ {[%clk 0:01:02.2]} 29... Kh7 {[%clk 0:00:27.6]} 30. Qb1+ {[%clk 0:01:01.5]}
30... g6 {[%clk 0:00:28.7]} 31. Qb7 {[%clk 0:01:01.3]} 31... Kg7 {[%clk
0:00:28.1]} 32. a4 {[%clk 0:00:58.7]} 32... Qe2 {[%clk 0:00:29.2]} 33. Rg1
{[%clk 0:00:50.4]} 33... Qf2 {[%clk 0:00:30.1]} 34. Qe4 {[%clk 0:00:47.1]} 34...
Re2 {[%clk 0:00:30.4]} 35. Qc4 {[%clk 0:00:45.7]} 35... Re3 {[%clk 0:00:25.9]}
36. Qd4+ {[%clk 0:00:45.4]} 36... Kh7 {[%clk 0:00:26.4]} 37. Qf6 {[%clk
0:00:45.7]} 37... Qg3+ {[%clk 0:00:25]} 38. Kh1 {[%clk 0:00:46.4]} 38... Kg8
{[%clk 0:00:25.5]} 39. Rd1 {[%clk 0:00:43.3]} 39... Re1+ {[%clk 0:00:22.6]} 40.
Rxe1 {[%clk 0:00:44.4]} 40... Qxe1+ {[%clk 0:00:24.5]} 41. Kh2 {[%clk
0:00:45.8]} 41... Qe4 {[%clk 0:00:24.5]} 42. a5 {[%clk 0:00:43.2]} 42... Qf5
{[%clk 0:00:25.4]} 43. Qd8+ {[%clk 0:00:43.9]} 43... Kg7 {[%clk 0:00:26.2]} 44.
Qd4+ {[%clk 0:00:44.5]} 44... Kh7 {[%clk 0:00:24.2]} 45. a6 {[%clk 0:00:41.9]}
45... g5 {[%clk 0:00:25.3]} 46. fxg5 {[%clk 0:00:41.8]} 46... hxg5 {[%clk
0:00:27.2]} 47. Qxa7 {[%clk 0:00:42.4]} 47... Qf4+ {[%clk 0:00:27]} 48. Kh1
{[%clk 0:00:43]} 48... Qc1+ {[%clk 0:00:28.2]} 49. Qg1 {[%clk 0:00:41.8]} 49...
Qa3 {[%clk 0:00:24.1]} 50. a7 {[%clk 0:00:40.8]} 50... Kg7 {[%clk 0:00:21.3]}
51. Qd4+ {[%clk 0:00:38.8]} 51... f6 {[%clk 0:00:20.7]} 52. Qd7+ {[%clk
0:00:39.2]} 52... Kg6 {[%clk 0:00:21.8]} 53. Qe8+ {[%clk 0:00:39]} 53... Kf5
{[%clk 0:00:22.7]} 54. a8=Q {[%clk 0:00:39.6]} 54... Qc1+ {[%clk 0:00:22.8]} 55.
Kh2 {[%clk 0:00:40]} 55... Qf4+ {[%clk 0:00:24.4]} 56. g3 {[%clk 0:00:40.9]}
56... Qf2+ {[%clk 0:00:25.1]} 57. Qg2 {[%clk 0:00:41.9]} 1-0

[Event "*** Titled Tuesday Blitz"]
[Site "Chess.com"]
[Date "2019.05.07"]
[Round "8"]
[White "XiaoKangZhong"]
[Black "TheGandhiOfChess"]
[Result "1-0"]
[WhiteElo "2248"]
[BlackElo "2374"]
[TimeControl "180+2"]
[EndTime "14:54:30 PDT"]
[Termination "XiaoKangZhong won by checkmate"]

1. e4 {[%clk 0:03:01.9]} 1... e5 {[%clk 0:02:59.9]} 2. Nf3 {[%clk 0:03:02.5]}
2... Nc6 {[%clk 0:03:00.9]} 3. Bc4 {[%clk 0:03:03.7]} 3... Nf6 {[%clk
0:03:01.8]} 4. d3 {[%clk 0:03:04.8]} 4... Be7 {[%clk 0:03:02.9]} 5. O-O {[%clk
0:03:06]} 5... O-O {[%clk 0:03:04.3]} 6. c3 {[%clk 0:03:07.3]} 6... d6 {[%clk
0:03:05.5]} 7. Re1 {[%clk 0:03:06.6]} 7... a6 {[%clk 0:02:58.8]} 8. Bb3 {[%clk
0:03:05.9]} 8... Na5 {[%clk 0:02:59.1]} 9. Bc2 {[%clk 0:03:06.9]} 9... c5 {[%clk
0:03:00.4]} 10. d4 {[%clk 0:03:06]} 10... cxd4 {[%clk 0:02:59.8]} 11. cxd4
{[%clk 0:03:05.2]} 11... Bg4 {[%clk 0:02:59.3]} 12. dxe5 {[%clk 0:03:02.7]}
12... Bxf3 {[%clk 0:02:54.2]} 13. Qxf3 {[%clk 0:03:02.7]} 13... dxe5 {[%clk
0:02:56]} 14. Nc3 {[%clk 0:03:03.7]} 14... Nc6 {[%clk 0:02:51.9]} 15. Qg3 {[%clk
0:03:00]} 15... Nd4 {[%clk 0:02:49.6]} 16. Bd1 {[%clk 0:02:52.5]} 16... Kh8
{[%clk 0:02:40.5]} 17. Be3 {[%clk 0:02:49.4]} 17... Qa5 {[%clk 0:02:26.4]} 18.
Qg5 {[%clk 0:02:23.9]} 18... Ng8 {[%clk 0:01:50.7]} 19. Qh5 {[%clk 0:02:15]}
19... f5 {[%clk 0:01:41.8]} 20. exf5 {[%clk 0:01:51.4]} 20... Rxf5 {[%clk
0:01:43.5]} 21. Qh3 {[%clk 0:01:49.8]} 21... Raf8 {[%clk 0:01:38.9]} 22. Bg4
{[%clk 0:01:40]} 22... R5f7 {[%clk 0:01:20.7]} 23. Bxd4 {[%clk 0:01:20.6]} 23...
exd4 {[%clk 0:01:22.5]} 24. Ne4 {[%clk 0:01:22.3]} 24... Rf4 {[%clk 0:01:03]}
25. Be6 {[%clk 0:01:03.1]} 25... Qe5 {[%clk 0:00:47.8]} 26. Bxg8 {[%clk
0:00:53.4]} 26... Kxg8 {[%clk 0:00:40.1]} 27. Qb3+ {[%clk 0:00:54.1]} 27... Kh8
{[%clk 0:00:39.4]} 28. Qxb7 {[%clk 0:00:54.6]} 28... d3 {[%clk 0:00:34.5]} 29.
Ng3 {[%clk 0:00:38.5]} 29... Qd4 {[%clk 0:00:24]} 30. Qxe7 {[%clk 0:00:30.6]}
30... Rxf2 {[%clk 0:00:24.4]} 31. Kh1 {[%clk 0:00:30.9]} 31... d2 {[%clk
0:00:23.6]} 32. Red1 {[%clk 0:00:23.6]} 32... Qxb2 {[%clk 0:00:16.5]} 33. Rab1
{[%clk 0:00:23]} 33... Qxa2 {[%clk 0:00:17.6]} 34. Rb7 {[%clk 0:00:20.7]} 34...
R2f7 {[%clk 0:00:13.1]} 35. Qxf7 {[%clk 0:00:20.1]} 35... Qxf7 {[%clk
0:00:13.9]} 36. Rxf7 {[%clk 0:00:21.2]} 36... Rxf7 {[%clk 0:00:15.8]} 37. Rxd2
{[%clk 0:00:22.9]} 37... Ra7 {[%clk 0:00:17.1]} 38. h3 {[%clk 0:00:23.6]} 38...
g6 {[%clk 0:00:18.6]} 39. Ra2 {[%clk 0:00:23.9]} 39... Kg7 {[%clk 0:00:20.2]}
40. Ra5 {[%clk 0:00:24.3]} 40... Kf6 {[%clk 0:00:21.2]} 41. Ne4+ {[%clk
0:00:25.6]} 41... Kg7 {[%clk 0:00:22.8]} 42. Nc5 {[%clk 0:00:26.6]} 42... Kh6
{[%clk 0:00:24.7]} 43. Rxa6 {[%clk 0:00:27.7]} 43... Rf7 {[%clk 0:00:26.2]} 44.
Ne4 {[%clk 0:00:28.1]} 44... Rf5 {[%clk 0:00:28.1]} 45. Kh2 {[%clk 0:00:28.9]}
45... Kh5 {[%clk 0:00:27.3]} 46. g4+ {[%clk 0:00:29.7]} 46... Kh4 {[%clk
0:00:28]} 47. gxf5 {[%clk 0:00:31]} 47... h5 {[%clk 0:00:29]} 48. f6 {[%clk
0:00:28.9]} 48... g5 {[%clk 0:00:30]} 49. f7 {[%clk 0:00:29.5]} 49... g4 {[%clk
0:00:31.5]} 50. f8=Q {[%clk 0:00:14.5]} 50... g3+ {[%clk 0:00:32.2]} 51. Nxg3
{[%clk 0:00:15.9]} 51... Kg5 {[%clk 0:00:33.3]} 52. Qf6# {[%clk 0:00:17.2]} 1-0

[Event "*** Titled Tuesday Blitz"]
[Site "Chess.com"]
[Date "2019.05.07"]
[Round "8"]
[White "Denis_Palkovich"]
[Black "Roenko_Artur"]
[Result "0-1"]
[WhiteElo "2242"]
[BlackElo "2211"]
[TimeControl "180+2"]
[EndTime "14:54:30 PDT"]
[Termination "Roenko_Artur won by checkmate"]

1. d4 {[%clk 0:03:01.9]} 1... d5 {[%clk 0:03:00.2]} 2. Bf4 {[%clk 0:03:02.3]}
2... Nf6 {[%clk 0:02:59.4]} 3. e3 {[%clk 0:03:02.9]} 3... c5 {[%clk 0:03:00.6]}
4. c3 {[%clk 0:03:03.3]} 4... Nc6 {[%clk 0:02:59.9]} 5. Nd2 {[%clk 0:03:03.8]}
5... e6 {[%clk 0:03:01]} 6. Bd3 {[%clk 0:03:02.4]} 6... Bd6 {[%clk 0:03:02]} 7.
Bxd6 {[%clk 0:03:03.3]} 7... Qxd6 {[%clk 0:03:02.1]} 8. f4 {[%clk 0:03:04.9]}
8... O-O {[%clk 0:02:45.8]} 9. Ngf3 {[%clk 0:03:04.7]} 9... Ne7 {[%clk
0:02:10.4]} 10. O-O {[%clk 0:03:02.6]} 10... a6 {[%clk 0:02:10.9]} 11. a4 {[%clk
0:03:00.5]} 11... b6 {[%clk 0:02:11.4]} 12. Ne5 {[%clk 0:03:00.2]} 12... Bb7
{[%clk 0:02:12.6]} 13. Qf3 {[%clk 0:02:47.6]} 13... g6 {[%clk 0:01:13.3]} 14. g4
{[%clk 0:01:58.6]} 14... Kg7 {[%clk 0:01:10.9]} 15. g5 {[%clk 0:01:57.9]} 15...
Nh5 {[%clk 0:01:11.3]} 16. Rf2 {[%clk 0:01:27.4]} 16... Nf5 {[%clk 0:01:10.6]}
17. Bxf5 {[%clk 0:01:24.2]} 17... exf5 {[%clk 0:01:11.7]} 18. Nf1 {[%clk
0:01:17]} 18... f6 {[%clk 0:01:06.5]} 19. gxf6+ {[%clk 0:01:16.9]} 19... Nxf6
{[%clk 0:01:05.6]} 20. Ng3 {[%clk 0:01:10.2]} 20... b5 {[%clk 0:00:41.7]} 21. h4
{[%clk 0:01:01.1]} 21... h5 {[%clk 0:00:42.4]} 22. Rg2 {[%clk 0:01:01]} 22...
Ng4 {[%clk 0:00:43.4]} 23. Ne2 {[%clk 0:00:21.4]} 23... c4 {[%clk 0:00:32.7]}
24. Qg3 {[%clk 0:00:07]} 24... Rfd8 {[%clk 0:00:29.8]} 25. Kh1 {[%clk
0:00:07.6]} 25... b4 {[%clk 0:00:27.9]} 26. Ng1 {[%clk 0:00:08]} 26... a5 {[%clk
0:00:17.8]} 27. Re1 {[%clk 0:00:08.2]} 27... Bc6 {[%clk 0:00:14.7]} 28. Ngf3
{[%clk 0:00:08.7]} 28... Bxa4 {[%clk 0:00:14.4]} 29. Nxg4 {[%clk 0:00:08.6]}
29... hxg4 {[%clk 0:00:13.7]} 30. Ne5 {[%clk 0:00:10.5]} 30... Rh8 {[%clk
0:00:13.6]} 31. Rh2 {[%clk 0:00:10.6]} 31... Bc2 {[%clk 0:00:11.1]} 32. Kg2
{[%clk 0:00:10.1]} 32... Be4+ {[%clk 0:00:12.1]} 33. Kf2 {[%clk 0:00:11.6]}
33... bxc3 {[%clk 0:00:13.2]} 34. bxc3 {[%clk 0:00:12.6]} 34... Rab8 {[%clk
0:00:14.8]} 35. Re2 {[%clk 0:00:11.1]} 35... Rb1 {[%clk 0:00:15.2]} 36. Rg2
{[%clk 0:00:11.6]} 36... Bxg2 {[%clk 0:00:15.3]} 37. Kxg2 {[%clk 0:00:11.6]}
37... Qf6 {[%clk 0:00:16.8]} 38. Ra2 {[%clk 0:00:08.7]} 38... Qxh4 {[%clk
0:00:16.7]} 39. Qxh4 {[%clk 0:00:09.9]} 39... Rxh4 {[%clk 0:00:17.9]} 40. Rxa5
{[%clk 0:00:11.5]} 40... Rb2+ {[%clk 0:00:19.5]} 41. Kg1 {[%clk 0:00:11.4]}
41... Rh3 {[%clk 0:00:18.8]} 42. Ra7+ {[%clk 0:00:11.3]} 42... Kg8 {[%clk
0:00:16.6]} 43. Ra8+ {[%clk 0:00:10.3]} 43... Kg7 {[%clk 0:00:18]} 44. Ra7+
{[%clk 0:00:11.4]} 44... Kf6 {[%clk 0:00:19]} 45. Ra6+ {[%clk 0:00:11.2]} 45...
Ke7 {[%clk 0:00:18.6]} 46. Nxg6+ {[%clk 0:00:11.8]} 46... Kd8 {[%clk 0:00:19.3]}
47. Rd6+ {[%clk 0:00:09.8]} 47... Kc7 {[%clk 0:00:19.4]} 48. Rxd5 {[%clk
0:00:11.5]} 48... Rxe3 {[%clk 0:00:19.2]} 49. Rc5+ {[%clk 0:00:12.4]} 49... Kb6
{[%clk 0:00:19.6]} 50. Rxc4 {[%clk 0:00:13.1]} 50... Re1# {[%clk 0:00:20.5]} 0-1